bitfinex/quotes_SOLUSD_20220109
["timestamp","ask_amount","ask_price","bid_price","bid_amount"]
[1641731180997,2.01995381,139.68,139.66,10.7414]
[1641731181198,2.01995381,139.68,139.64,59.8872341]
[1641731181199,2.01995381,139.68,139.59,77.4779]
[1641731181394,2.01995381,139.68,139.62,10.7463]
[1641731181594,8.923336,139.67,139.59,22.7277]
[1641731181795,10.94328981,139.67,139.59,22.7277]
[1641731181995,9.173336,139.66,139.59,22.7277]
[1641731182194,0.25,139.66,139.6,27.74249216]
[1641731182394,2.01995381,139.65,139.61,10.7467]
[1641731183294,2.01995381,139.63,139.61,10.7467]
[1641731187400,2.01995381,139.63,139.62,46.25]
[1641731187601,2.01995381,139.63,139.62,56.9942]
[1641731187800,2.01995381,139.64,139.62,56.9942]
[1641731188402,2.0291814,139.66,139.63,57.0]
[1641731188810,2.0291814,139.66,139.64,0.25]
[1641731189104,2.0291814,139.67,139.64,0.25]
[1641731189910,2.0291814,139.67,139.64,10.9924]
[1641731192508,2.0291814,139.67,139.64,11.0624]
[1641731192918,2.0291814,139.67,139.66,59.03458472]
[1641731193218,2.0291814,139.7,139.67,2.0291814]
[1641731193420,2.0291814,139.7,139.68,0.25]
[1641731193622,2.0291814,139.7,139.68,11.231]
[1641731193818,2.0291814,139.71,139.68,11.231]
[1641731194119,2.0291814,139.71,139.68,21.9695]
[1641731194319,6.06156506,139.76,139.69,76.0]
[1641731194518,6.06156506,139.76,139.7,0.25]
[1641731194718,6.06156506,139.76,139.7,3.51]
[1641731194917,6.06156506,139.76,139.7,0.51]
[1641731195318,6.06156506,139.76,139.7,3.51]
[1641731195521,6.06156506,139.76,139.74,26.36697126]
[1641731195719,86.53352334,139.82,139.74,33.73597126]
[1641731195720,82.83136506,139.82,139.74,33.73597126]
[1641731195921,19.556075,139.81,139.75,0.25]
[1641731196320,82.83136506,139.82,139.75,0.25]
[1641731196550,82.83136506,139.82,139.75,10.9824]
[1641731196723,6.046553,139.81,139.75,10.9824]
[1641731197121,0.25,139.8,139.75,10.9824]
[1641731197422,82.83136506,139.82,139.75,10.7324]
[1641731197822,82.83136506,139.82,139.74,10.7371]
[1641731198425,92.7199479,139.82,139.67,24.7345814]
[1641731198626,10.7384,139.79,139.7,35.7911]
[1641731199126,10.7384,139.79,139.72,10.7381]
[1641731199927,10.7374,139.8,139.72,10.7381]
[1641731200127,23.0599,139.81,139.72,10.7381]
[1641731200427,4.03742315,139.79,139.75,10.736]
[1641731201128,27.09732315,139.81,139.75,10.736]
[1641731201329,15.47055,139.8,139.75,33.23290987]
[1641731201527,15.72055,139.8,139.75,33.23290987]
[1641731201831,11.467601,139.79,139.75,33.23290987]
[1641731206929,80.80722315,139.82,139.76,0.25]
[1641731207137,4.03742315,139.82,139.79,10.7332]
[1641731207630,22.8269,139.85,139.79,10.7332]
[1641731210836,0.25,139.84,139.79,10.7332]
[1641731211662,23.4421,139.86,139.79,10.7332]
[1641731214066,17.768786,139.85,139.79,10.7332]
[1641731214468,0.25,139.84,139.79,10.7332]
[1641731214670,13.55584,139.83,139.79,10.7332]
[1641731215267,16.976252,139.83,139.79,10.7332]
[1641731215771,28.447967,139.83,139.75,58.27480987]
[1641731215969,0.25,139.84,139.78,10.7339]
[1641731216169,28.447967,139.83,139.78,10.7339]
[1641731216668,31.913048,139.83,139.78,10.7339]
[1641731216871,28.492636,139.83,139.78,10.7339]
[1641731217072,28.492636,139.82,139.78,10.7339]
[1641731217274,28.492636,139.81,139.78,10.7339]
[1641731217469,6.06439994,139.8,139.78,10.7339]
[1641731219181,6.06439994,139.8,139.75,58.27480987]
[1641731219980,6.06439994,139.8,139.75,22.49690987]
[1641731220780,6.06439994,139.8,139.76,10.7351]
[1641731221383,10.10182309,139.8,139.76,10.7351]
[1641731221981,6.06439994,139.8,139.76,10.7351]
[1641731222819,0.25,139.79,139.76,10.7351]
[1641731223321,4.03742315,139.81,139.76,10.7351]
[1641731223721,4.03742315,139.81,139.79,10.7324]
[1641731223919,4.03742315,139.8,139.79,10.7324]
[1641731224320,4.03742315,139.8,139.75,22.49690987]
[1641731224520,8.08917063,139.82,139.75,22.49690987]
[1641731224720,0.25,139.81,139.75,22.49690987]
[1641731224923,0.25,139.81,139.77,10.7345]
[1641731225524,4.28742315,139.81,139.77,10.7345]
[1641731225722,4.03742315,139.81,139.77,10.7345]
[1641731225926,0.25,139.8,139.77,10.7345]
[1641731227824,6.06439994,139.79,139.77,10.7345]
[1641731228323,0.25,139.8,139.77,10.7345]
[1641731228523,4.03742315,139.81,139.77,10.7345]
[1641731229927,4.03742315,139.82,139.77,10.7345]
[1641731233528,4.03742315,139.81,139.77,10.7345]
[1641731235930,0.25,139.8,139.77,10.7345]
[1641731236230,4.28742315,139.8,139.77,10.7345]
[1641731236830,6.06439994,139.79,139.77,10.7345]
[1641731237632,6.06439994,139.79,139.76,10.7357]
[1641731238731,10.10182309,139.79,139.76,10.7357]
[1641731239430,6.06439994,139.79,139.76,10.7357]
[1641731240933,10.10182309,139.79,139.76,10.7357]
[1641731242740,4.03742315,139.79,139.76,10.7357]
[1641731243138,4.03742315,139.8,139.76,10.7357]
[1641731243738,4.03742315,139.79,139.76,10.7357]
[1641731244839,4.03742315,139.8,139.76,10.7357]
[1641731246040,4.06023131,139.82,139.76,10.7357]
[1641731246041,2.03104991,139.82,139.77,3.25]
[1641731246243,9.76372334,139.89,139.78,76.0]
[1641731246440,9.76372334,139.89,139.8,29.69990174]
[1641731246841,9.76372334,139.89,139.81,0.25]
[1641731247041,4.05949089,139.85,139.81,2.03082586]
[1641731247241,4.05949089,139.85,139.81,2.29082586]
[1641731247441,4.05949089,139.85,139.81,2.03082586]
[1641731247642,6.08923633,139.89,139.85,10.7269]
[1641731247849,6.08923633,139.89,139.86,27.93794658]
[1641731248447,3.03219997,139.88,139.83,35.7555]
[1641731248745,3.03219997,139.88,139.81,35.7633]
[1641731248945,3.03219997,139.88,139.79,23.3193]
[1641731249167,3.03219997,139.88,139.8,0.25]
[1641731249467,0.25,139.87,139.8,30.90577604]
[1641731249867,24.5512,139.9,139.82,10.7307]
[1641731250071,8.11927556,139.89,139.82,10.7307]
[1641731250269,8.11927556,139.89,139.83,0.25]
[1641731250471,8.11927556,139.89,139.8,30.90577604]
[1641731250670,24.5512,139.9,139.8,30.90577604]
[1641731251272,0.25,139.89,139.81,24.5306]
[1641731251773,0.25,139.89,139.84,10.7294]
[1641731251975,11.474025,139.88,139.81,24.5306]
[1641731252176,0.25,139.89,139.81,24.5306]
[1641731252776,0.25,139.89,139.81,35.2624]
[1641731253477,0.25,139.89,139.81,24.5306]
[1641731253979,0.25,139.89,139.82,10.7311]
[1641731264390,10.8033,139.97,139.83,0.51]
[1641731264588,101.8154,139.96,139.9,23.98902647]
[1641731264787,50.6243,139.95,139.9,23.98902647]
[1641731265592,50.6243,139.95,139.91,10.7239]
[1641731265790,50.64618,139.95,139.88,35.7452]
[1641731265994,101.8154,139.96,139.88,35.7452]
[1641731266691,101.8154,139.96,139.91,10.7239]
[1641731266892,50.64618,139.95,139.91,10.7239]
[1641731267292,46.0,139.94,139.88,58.86162619]
[1641731267929,46.0,139.94,139.91,10.7239]
[1641731268224,6.06439994,139.93,139.91,10.7239]
[1641731272030,6.06439994,139.93,139.84,1.78082586]
[1641731273030,6.06439994,139.93,139.85,31.64527643]
[1641731274030,6.06439994,139.93,139.87,10.7272]
[1641731275933,0.25,139.92,139.87,10.7272]
[1641731276334,10.7274,139.95,139.87,10.7272]
[1641731276533,0.25,139.94,139.87,10.7272]
[1641731276933,112.5422,139.96,139.87,10.7272]
[1641731277135,0.25,139.95,139.87,10.7272]
[1641731277633,8.34004062,139.95,139.87,10.7272]
[1641731278335,0.25,139.95,139.87,10.7272]
[1641731279240,0.25,139.95,139.88,0.25]
[1641731279438,0.25,139.95,139.85,56.39147643]
[1641731279639,0.25,139.95,139.91,24.25115118]
[1641731280040,101.8154,139.96,139.91,24.25115118]
[1641731280640,78.0966,139.96,139.91,34.97515118]
[1641731281540,10.8033,139.97,139.91,34.97515118]
[1641731282642,10.8033,139.97,139.91,36.75597704]
[1641731282841,10.8033,139.97,139.92,0.25]
[1641731283043,97.0005,139.99,139.94,10.7215]
[1641731283241,107.623,139.99,139.94,10.7215]
[1641731283442,31.200441,139.98,139.94,10.7215]
[1641731284843,0.25,139.97,139.94,10.7215]
[1641731285242,31.200441,139.96,139.94,10.7215]
[1641731285642,31.200441,139.98,139.94,10.7215]
[1641731285842,31.200441,139.95,139.94,10.7215]
[1641731286043,31.200441,139.97,139.94,10.7215]
[1641731286243,31.200441,139.98,139.94,10.7215]
[1641731287644,50.0,139.97,139.91,59.98855118]
[1641731288245,50.0,139.97,139.94,10.7215]
[1641731288446,6.06439994,139.96,139.94,10.7215]
[1641731288646,36.27681294,139.96,139.94,10.7215]
[1641731288846,6.06439994,139.96,139.94,10.7215]
[1641731289048,30.212413,139.95,139.94,10.7215]
[1641731297779,30.212413,139.95,139.93,10.7225]
[1641731298076,3.03219997,139.96,139.93,10.7225]
[1641731298278,97.0005,139.99,139.93,10.7225]
[1641731298976,28.71375,139.98,139.93,10.7225]
[1641731299178,40.191069,139.98,139.92,10.7235]
[1641731299379,39.941069,139.97,139.92,10.7235]
[1641731299577,28.46375,139.97,139.92,10.7235]
[1641731299777,28.46375,139.96,139.92,10.7235]
[1641731299981,0.25,139.98,139.92,10.7235]
[1641731300179,0.25,139.98,139.92,40.52618295]
[1641731300579,97.0005,139.99,139.92,40.52618295]
[1641731300980,97.0005,139.99,139.93,0.25]
[1641731301183,97.0005,139.99,139.94,10.7215]
[1641731301586,28.46375,139.98,139.94,10.7215]
[1641731302782,23.034878,139.97,139.94,10.7215]
[1641731302981,23.034878,139.98,139.94,10.7215]
[1641731304786,23.034878,139.98,139.96,10.7196]
[1641731304986,24.2578,140.0,139.96,10.7196]
[1641731305190,23.034878,139.97,139.96,10.7196]
[1641731305687,48.227586,139.97,139.96,10.7196]
[1641731305888,29.667082,140.01,139.96,10.7196]
[1641731306890,0.25,140.0,139.96,10.7196]
[1641731307089,23.038108,139.99,139.96,10.7196]
[1641731307289,6.06439994,139.98,139.96,10.7196]
[1641731307492,20.83883894,139.98,139.96,10.7196]
[1641731307694,20.83883894,139.98,139.95,10.721]
[1641731307891,14.774439,139.97,139.95,10.721]
[1641731308091,14.774439,139.97,139.95,0.00140001]
[1641731308291,14.774439,139.99,139.95,0.00140001]
[1641731312496,14.774439,139.99,139.95,0.25140001]
[1641731312695,9.101521,139.99,139.95,0.25140001]
[1641731312898,9.101521,139.98,139.95,0.00140001]
[1641731313095,6.07115879,140.01,139.95,0.00140001]
[1641731313695,0.25,140.0,139.95,0.00140001]
[1641731316598,6.32115879,140.0,139.95,0.00140001]
[1641731318001,6.32115879,140.0,139.93,23.7594]
[1641731318200,30.92355879,140.0,139.92,29.80268295]
[1641731318799,2.02646763,139.93,139.92,29.80268295]
[1641731319201,2.02646763,139.93,139.9,59.1497]
[1641731319402,2.02646763,139.93,139.91,0.25]
[1641731319801,2.02646763,139.93,139.92,10.7227]
[1641731320001,2.02646763,139.93,139.82,75.2824]
[1641731320002,21.9711576,139.93,139.82,75.2824]
[1641731320202,8.09086757,139.93,139.86,29.9434647]
[1641731320438,6.06439994,139.93,139.82,75.2824]
[1641731320642,6.06439994,139.93,139.83,24.1378]
[1641731321340,6.06439994,139.93,139.84,25.54311664]
[1641731321540,2.02720029,139.9,139.87,10.7264]
[1641731324641,2.02720029,139.9,139.86,10.728]
[1641731324940,8.936471,139.89,139.81,60.5988]
[1641731325441,2.02720029,139.88,139.81,24.8366]
[1641731325648,2.02720029,139.88,139.81,54.65357826]
[1641731325843,2.02720029,139.88,139.84,10.7296]
[1641731326340,4.343578,139.87,139.84,10.7296]
[1641731326543,6.06439994,139.86,139.84,10.7296]
[1641731327144,2.02720029,139.87,139.84,10.7296]
[1641731328144,99.2468,139.91,139.84,10.7296]
[1641731328145,2.02720029,139.89,139.84,10.7296]
[1641731328546,2.02720029,139.89,139.81,29.81697826]
[1641731328750,2.02720029,139.89,139.83,10.7302]
[1641731329351,7.305779,139.88,139.81,29.81697826]
[1641731329551,2.02720029,139.87,139.81,29.81697826]
[1641731329747,2.02720029,139.87,139.83,10.7302]
[1641731329950,2.02720029,139.87,139.84,0.25]
[1641731330151,2.02720029,139.89,139.84,0.25]
[1641731330547,2.02720029,139.89,139.83,3.25]
[1641731330748,2.02720029,139.89,139.84,35.7561]
[1641731330952,2.02720029,139.91,139.84,36.0061]
[1641731331150,2.02720029,139.91,139.84,0.25]
[1641731331583,2.02720029,139.91,139.84,0.51]
[1641731331985,2.02720029,139.91,139.84,0.26]
[1641731332184,2.02720029,139.91,139.83,0.51]
[1641731332384,2.02720029,139.91,139.83,0.25]
[1641731332584,2.02720029,139.91,139.83,0.51]
[1641731332785,2.02720029,139.91,139.87,10.727]
[1641731333086,2.02720029,139.91,139.88,28.64563691]
[1641731333284,2.02720029,139.92,139.88,28.64563691]
[1641731334287,2.02720029,139.91,139.88,28.64563691]
[1641731334887,2.02720029,139.91,139.89,10.7256]
[1641731335491,2.02720029,139.92,139.89,10.7256]
[1641731335688,2.02720029,139.92,139.88,28.64563691]
[1641731335890,2.02720029,139.92,139.88,39.37223691]
[1641731336192,2.02720029,139.91,139.88,39.37223691]
[1641731338695,2.02720029,139.92,139.88,39.37223691]
[1641731339093,7.472738,139.91,139.88,39.37223691]
[1641731339495,2.02720029,139.92,139.88,39.37223691]
[1641731341208,15.446782,139.91,139.88,39.37223691]
[1641731341601,6.06439994,139.9,139.88,39.37223691]
[1641731341802,2.02720029,139.91,139.88,39.37223691]
[1641731342200,2.02720029,139.91,139.88,28.64563691]
[1641731344147,2.02720029,139.91,139.88,39.37193691]
[1641731346943,6.06439994,139.9,139.88,39.37193691]
[1641731347744,8.09160023,139.9,139.88,28.64563691]
[1641731348743,8.09160023,139.9,139.83,23.8438]
[1641731348744,17.368076,139.89,139.83,23.8438]
[1641731348948,17.368076,139.89,139.77,12.43132013]
[1641731349143,61.078694,139.89,139.79,23.2773]
[1641731349345,20.418118,139.88,139.79,23.2773]
[1641731349544,2.02720029,139.87,139.79,23.2773]
[1641731349744,4.134154,139.86,139.82,10.7311]
[1641731350345,6.16135429,139.86,139.82,10.7311]
[1641731350545,2.02720029,139.86,139.82,10.7311]
[1641731351647,10.729041,139.85,139.82,10.7311]
[1641731351851,6.06439994,139.84,139.82,10.7311]
[1641731352348,3.03219997,139.84,139.82,10.7311]
[1641731352548,2.02720029,139.86,139.82,10.7311]
[1641731354551,29.558028,139.85,139.82,10.7311]
[1641731354751,6.06439994,139.84,139.81,38.39600458]
[1641731355856,2.02720029,139.86,139.81,38.39600458]
[1641731356860,4.258218,139.85,139.81,38.39600458]
[1641731358659,14.737524,139.85,139.81,38.39600458]
[1641731358858,4.258218,139.85,139.81,38.39600458]
[1641731359860,14.821025,139.85,139.81,38.39600458]
[1641731360259,4.258218,139.85,139.81,38.39600458]
[1641731360459,2.02720029,139.86,139.81,38.39600458]
[1641731360663,4.258218,139.85,139.81,38.39600458]
[1641731360861,14.904525,139.85,139.81,38.39600458]
[1641731361459,2.02720029,139.86,139.81,38.39600458]
[1641731361661,2.02720029,139.86,139.82,0.25]
[1641731361861,2.02720029,139.86,139.84,10.7283]
[1641731362063,2.02720029,139.86,139.85,40.0]
[1641731362359,2.02720029,139.89,139.85,40.25]
[1641731362759,2.02720029,139.89,139.85,37.25]
[1641731363160,2.02720029,139.9,139.85,37.25]
[1641731363759,2.02720029,139.9,139.85,47.9777]
[1641731364163,2.02720029,139.9,139.85,10.7277]
[1641731364561,2.02720029,139.89,139.85,10.7277]
[1641731365162,2.02720029,139.88,139.85,10.7277]
[1641731365367,6.06439994,139.87,139.85,10.7277]
[1641731365963,8.09160023,139.87,139.85,10.7277]
[1641731366764,2.02720029,139.86,139.85,10.7277]
[1641731367164,2.02720029,139.86,139.84,10.7296]
[1641731367566,6.06439994,139.87,139.84,10.7296]
[1641731368366,2.02720029,139.88,139.84,10.7296]
[1641731368965,2.02720029,139.89,139.84,10.7296]
[1641731369765,2.02720029,139.89,139.85,3.25]
[1641731369967,2.02720029,139.89,139.87,10.7266]
[1641731370364,2.02720029,139.9,139.87,10.7266]
[1641731370765,2.02720029,139.9,139.87,39.95085026]
[1641731370967,2.02720029,139.9,139.87,10.7266]
[1641731371566,2.02720029,139.89,139.86,10.7279]
[1641731373671,2.02720029,139.88,139.86,10.7279]
[1641731373970,2.02720029,139.88,139.85,10.7287]
[1641731374368,2.02720029,139.89,139.85,10.7287]
[1641731374571,2.02720029,139.89,139.78,80.57672586]
[1641731374770,2.02720029,139.89,139.77,22.8039]
[1641731374969,2.02720029,139.88,139.81,10.7318]
[1641731375172,20.414554,139.87,139.8,25.32657647]
[1641731375370,2.02720029,139.88,139.8,25.32657647]
[1641731376072,2.02720029,139.85,139.8,25.32657647]
[1641731376672,2.02720029,139.85,139.8,36.05907647]
[1641731377674,2.02720029,139.86,139.8,36.05907647]
[1641731378173,2.02720029,139.85,139.8,36.05907647]
[1641731380577,2.02720029,139.86,139.8,36.05907647]
[1641731381376,2.02720029,139.85,139.8,36.05907647]
[1641731382877,37.240334,139.84,139.79,10.7334]
[1641731383077,17.66037,139.83,139.77,24.1335]
[1641731383277,2.02720029,139.84,139.77,24.1335]
[1641731383676,2.02720029,139.84,139.76,23.2761]
[1641731383878,2.02720029,139.84,139.78,30.07669463]
[1641731384279,0.25,139.83,139.78,30.07669463]
[1641731384479,2.27720029,139.83,139.78,30.07669463]
[1641731385080,2.27720029,139.83,139.78,40.81079463]
[1641731386081,0.25,139.83,139.78,40.81079463]
[1641731389287,0.25,139.83,139.78,30.07669463]
[1641731390591,0.25,139.83,139.78,40.81079463]
[1641731393516,2.02720029,139.84,139.78,40.81079463]
[1641731393916,2.02720029,139.84,139.79,0.25]
[1641731394119,2.02720029,139.84,139.81,10.7294]
[1641731394316,2.02720029,139.87,139.81,10.7294]
[1641731395516,0.25,139.86,139.81,10.7294]
[1641731395718,2.02720029,139.86,139.81,10.7294]
[1641731396618,2.02720029,139.87,139.81,10.7294]
[1641731398619,2.02720029,139.86,139.81,10.7294]
[1641731399119,2.02720029,139.86,139.82,0.25]
[1641731400022,2.02720029,139.88,139.85,10.7283]
[1641731400222,2.02720029,139.88,139.84,29.39655455]
[1641731400922,0.25,139.87,139.84,29.39655455]
[1641731401823,2.02720029,139.88,139.86,10.7276]
[1641731402722,79.2903,139.9,139.86,10.7276]
[1641731402723,2.02720029,139.89,139.86,10.7276]
[1641731403323,2.02720029,139.88,139.85,10.7287]
[1641731403523,2.27720029,139.88,139.84,29.39655455]
[1641731404525,2.02720029,139.87,139.84,40.12605455]
[1641731405325,2.02720029,139.88,139.84,40.12605455]
[1641731408428,0.25,139.87,139.84,40.12605455]
[1641731410364,6.06439994,139.86,139.84,40.12605455]
[1641731411033,0.25,139.87,139.84,40.12605455]
[1641731413832,2.02720029,139.88,139.84,40.12605455]
[1641731414434,6.07115879,139.94,139.84,40.12605455]
[1641731414435,2.02720029,139.89,139.84,40.12605455]
[1641731414933,2.02720029,139.89,139.85,0.51]
[1641731415136,4.04055771,139.92,139.88,52.0]
[1641731415336,1.99637911,139.9,139.88,52.0]
[1641731415534,1.99637911,139.9,139.89,28.25]
[1641731415734,8.03331593,139.93,139.9,62.94718177]
[1641731416136,4.04055771,139.96,139.92,10.7231]
[1641731416936,8.08699975,139.97,139.92,10.7231]
[1641731417736,8.08699975,139.98,139.92,10.7231]
[1641731418540,0.25,139.97,139.92,10.7231]
[1641731420749,4.04055771,139.98,139.92,10.7231]
[1641731420945,4.04055771,139.98,139.95,10.7206]
[1641731421248,80.84275771,140.0,139.96,25.21471671]
[1641731421446,4.04055771,140.0,139.96,25.21471671]
[1641731422846,4.04055771,140.0,139.91,24.8463]
[1641731422847,0.25,139.99,139.95,10.721]
[1641731423247,0.25,139.99,139.91,60.5837]
[1641731423448,0.25,139.99,139.92,0.25]
[1641731423846,0.25,139.99,139.92,31.17038202]
[1641731424147,0.25,139.99,139.94,10.7213]
[1641731425249,4.04055771,140.0,139.94,10.7213]
[1641731426672,27.62365771,140.01,139.94,10.7213]
[1641731426871,0.25,140.0,139.94,10.7213]
[1641731427276,27.37365771,140.01,139.94,10.7213]
[1641731427972,23.3331,140.01,139.94,10.7213]
[1641731429775,27.37365771,140.01,139.94,10.7213]
[1641731430478,4.04055771,140.01,139.94,10.7213]
[1641731431077,8.07351522,140.02,139.94,10.7213]
[1641731432178,32.87311522,140.02,139.94,10.7213]
[1641731433179,28.84015771,140.02,139.94,10.7213]
[1641731435382,8.07396499,140.01,139.94,10.7213]
[1641731435582,40.697171,140.0,139.92,10.7229]
[1641731435781,62.487285,140.0,139.88,22.6285]
[1641731435982,24.5516,139.99,139.88,22.6285]
[1641731436185,31.889643,139.98,139.85,27.0812]
[1641731436384,73.156,139.97,139.85,24.0812]
[1641731436584,73.156,139.97,139.86,31.10057586]
[1641731436782,27.010417,139.96,139.86,31.10057586]
[1641731437083,35.03351611,139.96,139.86,31.10057586]
[1641731437284,15.530766,139.95,139.86,31.10057586]
[1641731437784,15.530766,139.95,139.87,10.7272]
[1641731437985,43.53739911,139.96,139.87,10.7272]
[1641731438284,28.82775771,139.96,139.87,10.7272]
[1641731439586,24.7872,139.96,139.87,10.7272]
[1641731440888,24.7872,139.96,139.88,0.25]
[1641731441088,24.7872,139.96,139.89,10.7255]
[1641731442188,77.19655771,139.97,139.89,10.7255]
[1641731442589,73.156,139.97,139.89,10.7255]
[1641731443190,73.156,139.97,139.91,10.7238]
[1641731443391,77.19655771,139.97,139.88,2.03082586]
[1641731443590,77.19655771,139.97,139.88,2.29082586]
[1641731443991,73.156,139.97,139.88,2.29082586]
[1641731444392,4.04055771,139.98,139.92,10.7235]
[1641731444593,4.04055771,139.98,139.93,29.97755262]
[1641731444791,4.04055771,139.98,139.93,30.22755262]
[1641731444996,4.04055771,139.98,139.93,29.97755262]
[1641731445392,4.04055771,139.99,139.94,0.25]
[1641731445593,4.04055771,139.99,139.93,29.97755262]
[1641731445793,4.04055771,139.99,139.95,10.7204]
[1641731446093,4.04055771,139.99,139.94,0.25]
[1641731446293,8.08957153,140.0,139.94,0.25]
[1641731446993,8.08957153,140.0,139.93,29.97755262]
[1641731447195,8.08957153,140.0,139.96,10.7204]
[1641731449593,8.08957153,140.0,139.93,29.97755262]
[1641731449594,23.74179371,139.99,139.93,29.97755262]
[1641731449793,11.478817,139.98,139.93,29.97755262]
[1641731449993,20.412061,139.98,139.93,29.97755262]
[1641731450293,4.04055771,139.97,139.93,29.97755262]
[1641731450494,24.45425771,139.97,139.93,29.97755262]
[1641731450696,11.480456,139.96,139.93,29.97755262]
[1641731451095,20.412907,139.96,139.93,29.97755262]
[1641731451294,6.06439994,139.95,139.93,29.97755262]
[1641731451695,6.06439994,139.95,139.93,40.70015262]
[1641731452397,6.06439994,139.95,139.93,29.97755262]
[1641731453999,6.06439994,139.95,139.93,40.70035262]
[1641731455100,6.06439994,139.95,139.93,29.97755262]
[1641731456000,6.06439994,139.95,139.92,10.7235]
[1641731456200,24.128202,139.94,139.87,35.7483]
[1641731456403,4.04055771,139.96,139.86,24.3997]
[1641731456802,4.04055771,139.95,139.86,24.3997]
[1641731457003,4.04055771,139.95,139.87,23.77578884]
[1641731457402,4.04055771,139.95,139.88,10.7261]
[1641731457602,4.04055771,139.94,139.88,10.7261]
[1641731458206,4.04055771,139.95,139.88,10.7261]
[1641731458906,8.09082734,139.95,139.88,10.7261]
[1641731459527,4.04055771,139.96,139.88,10.7261]
[1641731460226,8.09082734,139.96,139.88,10.7261]
[1641731460425,25.712649,139.95,139.88,10.7261]
[1641731461426,29.75320671,139.95,139.88,10.7261]
[1641731461628,4.04055771,139.95,139.88,10.7261]
[1641731463929,8.08896841,139.96,139.88,10.7261]
[1641731465832,8.08896841,139.96,139.92,10.7234]
[1641731466034,8.08896841,139.96,139.93,29.01642305]
[1641731466234,6.06439994,139.95,139.93,29.01642305]
[1641731469836,4.04055771,139.96,139.93,29.01642305]
[1641731470538,8.09016447,139.96,139.93,29.01642305]
[1641731471538,8.09016447,139.96,139.93,39.73912305]
[1641731472441,4.04055771,139.97,139.93,39.73912305]
[1641731473441,8.09016447,139.98,139.93,39.73912305]
[1641731474042,4.04055771,139.99,139.94,3.0]
[1641731474242,4.04055771,139.99,139.96,10.7202]
[1641731474642,6.06439994,139.98,139.96,10.7202]
[1641731474841,4.04055771,140.0,139.96,10.7202]
[1641731475344,4.04055771,139.99,139.96,10.7202]
[1641731476246,6.06439994,139.98,139.96,10.7202]
[1641731477448,6.06439994,139.98,139.93,29.01642305]
[1641731477887,10.10495765,139.98,139.93,29.01642305]
[1641731478849,10.10495765,139.98,139.93,39.73892305]
[1641731479954,6.06439994,139.98,139.93,39.73892305]
[1641731480558,10.10495765,139.98,139.93,39.73892305]
[1641731483054,6.06439994,139.98,139.93,39.73892305]
[1641731484359,10.10495765,139.98,139.93,39.73892305]
[1641731484859,6.06439994,139.98,139.93,39.73892305]
[1641731485488,10.10495765,139.98,139.93,39.73892305]
[1641731489592,11.480509,139.97,139.93,29.01642305]
[1641731490193,11.480509,139.97,139.87,23.2537]
[1641731490391,11.480509,139.97,139.85,24.0812]
[1641731490392,23.6241,139.96,139.85,24.0812]
[1641731490595,99.2887,139.96,139.86,10.728]
[1641731491194,4.04055771,139.93,139.87,27.13628991]
[1641731491399,14.76975771,139.93,139.87,27.13628991]
[1641731492194,11.484573,139.92,139.87,27.13628991]
[1641731492796,22.214473,139.92,139.87,27.13628991]
[1641731493097,11.484573,139.91,139.87,27.13628991]
[1641731493796,11.484573,139.9,139.84,33.9055]
[1641731493997,14.77035771,139.93,139.84,33.9055]
[1641731493998,24.8951,139.92,139.84,33.9055]
[1641731494797,24.8951,139.92,139.85,29.64631779]
[1641731495299,24.8951,139.92,139.85,40.37521779]
[1641731496634,4.04055771,139.94,139.85,42.15604365]
[1641731497601,50.35155771,139.95,139.85,42.15604365]
[1641731498202,50.35155771,139.95,139.85,40.37521779]
[1641731498903,8.08472598,139.94,139.85,40.37521779]
[1641731500403,4.04416827,139.94,139.85,40.37521779]
[1641731500805,4.04416827,139.94,139.87,10.727]
[1641731501307,50.35155771,139.95,139.87,10.727]
[1641731502007,50.35155771,139.95,139.85,29.64631779]
[1641731502605,8.08293313,139.94,139.85,29.64631779]
[1641731503105,8.08293313,139.94,139.85,42.15574365]
[1641731503507,8.08293313,139.94,139.85,40.37491779]
[1641731504809,50.35155771,139.95,139.85,40.37491779]